[Event "Silver Lake Open-A 2018"]
[Site "Veliko Gradiste"]
[Date "2018.06.21"]
[Round "6"]
[White "Sevgi, Volkan"]
[Black "Filev, Georgi"]
[Result "1-0"]
[ECO "A05"]
[WhiteElo "2266"]
[BlackElo "2390"]
[Annotator "ChessBase"]
[PlyCount "127"]
[EventDate "2018.06.21"]
[EventType "swiss"]
[EventCountry "SRB"]
[SourceTitle "playchess.com"]
[Source "ChessBase"]
[SourceQuality "1"]
[TimeControl "40/5400+30:900+30"]

1. Nf3 {[%emt 0:00:00]} Nf6 {[%emt 0:00:26]} 2. g3 {[%emt 0:00:00]} g6 {[%emt 0:00:16]} 3. b3 {[%emt 0:00:00]} Bg7 {[%emt 0:00:12]} 4. Bb2 {[%emt 0:00:02]} O-O {[%emt 0:00:39]} 5. Bg2 {[%emt 0:00:06]} d6 {[%emt 0:01:43]} 6. d4 {[%emt 0:03:24]} Nbd7 {[%emt 0:06:25]} 7. O-O {[%emt 0:00:28]} c6 {[%emt 0:03:20]} 8. Nbd2 {[%emt 0:00:55]} Qc7 {[%emt 0:01:53]} 9. c4 {[%emt 0:01:44]} e5 {[%emt 0:01:50]} 10. e4 exd4 {[%emt 0:02:28]} 11. Bxd4 {[%emt 0:02:19]} Re8 {[%emt 0:01:41]} 12. Qc2 {[%emt 0:02:18]} b6 {[%emt 0:03:59]} 13. Rfe1 {[%emt 0:02:15]} Bb7 {[%emt 0:00:36]} 14. Rad1 {[%emt 0:03:10]} Rad8 {[%emt 0:01:08]} 15. h3 {[%emt 0:00:41]} Ne5 {[%emt 0:03:48]} 16. Nh2 {[%emt 0:02:11]} Qe7 {[%emt 0:12:08]} 17. f4 {[%emt 0:03:23]} Ned7 {[%emt 0:00:10]} 18. Qb2 {[%emt 0:20:42]} Qf8 {[%emt 0:03:06]} 19. g4 {[%emt 0:06:39]} h6 {[%emt 0:04:30]} 20. Nhf1 {[%emt 0:01:07]} Nh7 {[%emt 0:01:25]} 21. Ng3 {[%emt 0:05:04]} Nc5 {[%emt 0:02:02]} 22. Nf3 {[%emt 0:02:14]} Ne6 {[%emt 0:02:02]} 23. Bxg7 {[%emt 0:00:11]} Qxg7 {[%emt 0:00:16]} 24. Qc1 {[%emt 0:00:45]} Qf6 {[%emt 0:09:09]} 25. f5 {[%emt 0:03:43]} Neg5 {[%emt 0:00:19]} 26. Nxg5 {[%emt 0:04:08]} hxg5 {[%emt 0:02:18]} 27. Rd3 {[%emt 0:03:18]} Qe5 {[%emt 0:02:31]} 28. Red1 {[%emt 0:00:41]} c5 {[%emt 0:01:50]} 29. Qd2 {[%emt 0:01:30]} Kg7 {[%emt 0:14:30]} 30. Rxd6 {[%emt 0:02:18]} Rxd6 {[%emt 0:07:43]} 31. Qxd6 {[%emt 0:00:04]} Nf6 {[%emt 0:00:14]} 32. Qxe5 {[%emt 0:01:35]} Rxe5 {[%emt 0:00:07]} 33. fxg6 {[%emt 0:17:48]} fxg6 {[%emt 0:00:27]} 34. Kf2 {[%emt 0:01:50]} Kf7 {[%emt 0:01:07]} 35. Ke3 {[%emt 0:02:15]} Ke7 {[%emt 0:02:28]} 36. Bf3 {[%emt 0:00:11]} a6 {[%emt 0:07:45]} 37. Rh1 {[%emt 0:01:05]} b5 {[%emt 0:01:06]} 38. h4 {[%emt 0:00:42]} gxh4 {[%emt 0:00:49]} 39. Rxh4 {[%emt 0:00:58]} bxc4 {[%emt 0:00:27]} 40. bxc4 g5 41. Rh8 {[%emt 0:05:14]} Bc6 {[%emt 0:02:34]} 42. Rb8 {[%emt 0:02:03]} a5 {[%emt 0:00:26]} 43. Rb6 {[%emt 0:02:00]} Kd7 {[%emt 0:03:42]} 44. Ra6 {[%emt 0:00:12]} a4 {[%emt 0:00:06]} 45. Ra7+ {[%emt 0:00:05]} Kd8 {[%emt 0:04:36]} 46. Rf7 {[%emt 0:03:04]} Re6 {[%emt 0:00:27]} 47. Rg7 {[%emt 0:00:30]} Re5 {[%emt 0:00:06]} 48. Rg6 {[%emt 0:01:15]} Ke7 {[%emt 0:00:38]} 49. Nf5+ {[%emt 0:01:20]} Ke6 {[%emt 0:03:37]} 50. a3 {[%emt 0:07:43]} Ba8 {[%emt 0:01:51]} 51. Bh1 {[%emt 0:03:09]} Bc6 {[%emt 0:00:43]} 52. Bg2 {[%emt 0:00:01]} Ba8 53. Bf3 Bc6 {[%emt 0:00:49]} 54. Rxg5 {[%emt 0:01:19]} Nxe4 {[%emt 0:03:07]} 55. Ng7+ {[%emt 0:01:20]} Kf6 {[%emt 0:00:10]} 56. Rxe5 {[%emt 0:00:38]} Kxe5 {[%emt 0:00:01]} 57. Bxe4 {[%emt 0:00:13]} Bxe4 {[%emt 0:00:07]} 58. Ne6 {[%emt 0:00:03]} Bg2 {[%emt 0:01:50]} 59. Nxc5 {[%emt 0:00:07]} Bf1 {[%emt 0:00:08]} 60. Nd3+ {[%emt 0:00:37]} Kd6 {[%emt 0:01:03]} 61. Kd4 {[%emt 0:00:14]} Bh3 {[%emt 0:00:19]} 62. g5 {[%emt 0:00:23]} Bf5 {[%emt 0:00:07]} 63. c5+ {[%emt 0:00:21]} Ke6 {[%emt 0:01:08]} 64. Nf4+ {[%emt 0:00:08]} 1-0

[Event "Silver Lake Open-A 2018"]
[Site "Veliko Gradiste"]
[Date "2018.06.21"]
[Round "6"]
[White "Dahl, Trygve"]
[Black "Rajkovic, Mladen"]
[Result "0-1"]
[ECO "C44"]
[WhiteElo "2206"]
[BlackElo "2354"]
[Annotator "NA"]
[PlyCount "74"]
[EventDate "2018.06.21"]
[EventType "swiss"]
[EventCountry "SRB"]
[SourceTitle "playchess.com"]
[Source "ChessBase"]
[SourceQuality "1"]
[TimeControl "40/5400+30:900+30"]

1. e4 {[%emt 0:00:00]} e5 {[%emt 0:02:28]} 2. Nf3 {[%emt 0:00:00]} Nc6 {[%emt 0:00:10]} 3. c3 {[%emt 0:00:00]} d5 {[%emt 0:01:36]} 4. Qa4 {[%emt 0:00:15]} f6 {[%emt 0:00:43]} 5. d3 {[%emt 0:01:53]} Be6 {[%emt 0:02:41]} 6. Be2 {[%emt 0:00:07]} Qd7 {[%emt 0:01:27]} 7. O-O {[%emt 0:00:09]} g5 {[%emt 0:02:01]} 8. Nbd2 {[%emt 0:02:25]} Nge7 {[%emt 0:01:19]} 9. d4 {[%emt 0:01:12]} g4 {[%emt 0:03:38]} 10. Ne1 {[%emt 0:04:20]} exd4 {[%emt 0:06:27]} 11. cxd4 {[%emt 0:00:21]} Nc8 {[%emt 0:01:02]} 12. exd5 {[%emt 0:05:29]} Bxd5 {[%emt 0:03:43]} 13. Nd3 {[%emt 0:13:27]} Nb6 {[%emt 0:02:26]} 14. Qd1 {[%emt 0:00:19]} h5 {[%emt 0:00:27]} 15. Nc5 {[%emt 0:00:37]} Qf7 {[%emt 0:02:17]} 16. Nxb7 {[%emt 0:07:21]} Nxd4 {[%emt 0:02:46]} 17. Re1 {[%emt 0:07:08]} Be7 {[%emt 0:03:36]} 18. Na5 {[%emt 0:05:06]} O-O-O {[%emt 0:06:31]} 19. Nab3 {[%emt 0:04:27]} Nxe2+ {[%emt 0:03:09]} 20. Qxe2 {[%emt 0:03:06]} Rhe8 {[%emt 0:00:13]} 21. Qb5 {[%emt 0:02:18]} Bd6 {[%emt 0:08:59]} 22. Rxe8 {[%emt 0:02:51]} Rxe8 {[%emt 0:00:53]} 23. Nf1 {[%emt 0:00:58]} Re1 {[%emt 0:05:57]} 24. Be3 {[%emt 0:02:27]} Rxa1 {[%emt 0:00:42]} 25. Nxa1 {[%emt 0:00:06]} Bxa2 {[%emt 0:00:42]} 26. Nd2 {[%emt 0:07:44]} Bd5 {[%emt 0:02:04]} 27. Nc2 {[%emt 0:06:05]} Qd7 {[%emt 0:04:42]} 28. Nd4 {[%emt 0:02:42]} Be5 {[%emt 0:02:19]} 29. Nb1 {[%emt 0:03:04]} Qxb5 {[%emt 0:04:28]} 30. Nxb5 {[%emt 0:00:08]} a6 {[%emt 0:00:10]} 31. N5c3 {[%emt 0:03:10]} Be6 {[%emt 0:00:46]} 32. Nd2 {[%emt 0:00:14]} Nd5 {[%emt 0:01:16]} 33. Nxd5 {[%emt 0:01:45]} Bxd5 {[%emt 0:00:02]} 34. b3 {[%emt 0:00:11]} Kb7 {[%emt 0:01:54]} 35. g3 {[%emt 0:00:17]} Kc6 {[%emt 0:00:24]} 36. Kf1 {[%emt 0:01:09]} Kb5 {[%emt 0:00:14]} 37. Ke2 {[%emt 0:00:08]} Kb4 {[%emt 0:00:20]} 0-1

[Event "Silver Lake Open-A 2018"]
[Site "Veliko Gradiste"]
[Date "2018.06.22"]
[Round "7"]
[White "Filev, Georgi"]
[Black "Dinev, Dejan"]
[Result "1-0"]
[ECO "B42"]
[WhiteElo "2390"]
[BlackElo "2285"]
[Annotator "ChessBase"]
[PlyCount "111"]
[EventDate "2018.06.21"]
[EventType "swiss"]
[EventCountry "SRB"]
[SourceTitle "playchess.com"]
[Source "ChessBase"]
[SourceQuality "1"]
[TimeControl "40/5400+30:900+30"]

1. e4 {[%emt 0:00:00]} c5 {[%emt 0:02:06]} 2. Nf3 {[%emt 0:00:00]} e6 {[%emt 0:00:08]} 3. d4 {[%emt 0:00:00]} cxd4 {[%emt 0:00:08]} 4. Nxd4 {[%emt 0:00:12]} a6 {[%emt 0:00:10]} 5. Bd3 {[%emt 0:01:16]} Nc6 {[%emt 0:02:54]} 6. Nxc6 {[%emt 0:01:36]} bxc6 {[%emt 0:00:23]} 7. c4 {[%emt 0:05:15]} d5 {[%emt 0:01:43]} 8. O-O {[%emt 0:08:44]} Nf6 {[%emt 0:00:22]} 9. Nc3 {[%emt 0:00:31]} d4 {[%emt 0:33:15]} 10. Na4 {[%emt 0:06:02]} Nd7 {[%emt 0:06:01]} 11. f4 {[%emt 0:12:03]} e5 {[%emt 0:11:13]} 12. f5 {[%emt 0:07:54]} Be7 {[%emt 0:08:25]} 13. Bd2 {[%emt 0:08:22]} c5 {[%emt 0:02:19]} 14. Rf3 {[%emt 0:14:06]} Bb7 {[%emt 0:01:17]} 15. b3 {[%emt 0:01:20]} Bc6 {[%emt 0:00:38]} 16. Nb2 {[%emt 0:00:07]} a5 {[%emt 0:00:22]} 17. Rg3 {[%emt 0:01:28]} g6 {[%emt 0:02:41]} 18. Qf3 {[%emt 0:03:56]} g5 {[%emt 0:08:22]} 19. f6 {[%emt 0:14:04]} Bxf6 {[%emt 0:00:15]} 20. Rf1 {[%emt 0:00:09]} Qe7 {[%emt 0:01:22]} 21. Qh5 {[%emt 0:00:22]} h6 {[%emt 0:00:37]} 22. Rgf3 {[%emt 0:00:16]} Ra6 {[%emt 0:00:39]} 23. Nd1 {[%emt 0:00:22]} Rf8 {[%emt 0:02:26]} 24. Nf2 {[%emt 0:00:36]} Bb7 {[%emt 0:01:49]} 25. Ng4 {[%emt 0:00:30]} Bg7 {[%emt 0:00:22]} 26. a4 {[%emt 0:01:14]} Qe6 {[%emt 0:07:32]} 27. h4 {[%emt 0:01:11]} Qg6 {[%emt 0:01:37]} 28. Qxg6 {[%emt 0:00:10]} fxg6 {[%emt 0:00:16]} 29. Rxf8+ {[%emt 0:03:02]} Nxf8 {[%emt 0:01:26]} 30. hxg5 {[%emt 0:00:06]} h5 {[%emt 0:00:23]} 31. Nf6+ {[%emt 0:00:51]} Bxf6 {[%emt 0:01:30]} 32. Rxf6 {[%emt 0:01:09]} Rxf6 {[%emt 0:00:22]} 33. gxf6 {[%emt 0:00:06]} Nd7 {[%emt 0:00:04]} 34. f7+ {[%emt 0:08:09]} Kxf7 {[%emt 0:00:05]} 35. Bxa5 {[%emt 0:00:05]} Nf6 {[%emt 0:00:12]} 36. Bd8 {[%emt 0:01:34]} Nxe4 {[%emt 0:01:26]} 37. Bxe4 {[%emt 0:01:02]} Bxe4 {[%emt 0:00:07]} 38. a5 {[%emt 0:00:16]} Bb7 {[%emt 0:01:45]} 39. Bb6 {[%emt 0:00:18]} d3 {[%emt 0:00:27]} 40. Kf2 {[%emt 0:00:00]} Bxg2 {[%emt 0:02:46]} 41. Bxc5 {[%emt 0:00:45]} h4 {[%emt 0:05:06]} 42. Be3 {[%emt 0:01:08]} Ba8 {[%emt 0:03:46]} 43. b4 {[%emt 0:00:40]} Kf6 {[%emt 0:01:52]} 44. a6 {[%emt 0:05:36]} g5 {[%emt 0:00:08]} 45. b5 {[%emt 0:00:07]} g4 {[%emt 0:00:13]} 46. b6 {[%emt 0:00:33]} g3+ {[%emt 0:01:24]} 47. Kf1 {[%emt 0:04:59]} Bf3 {[%emt 0:04:27]} 48. b7 {[%emt 0:01:43]} h3 {[%emt 0:00:46]} 49. b8=Q {[%emt 0:00:35]} Be2+ {[%emt 0:00:20]} 50. Ke1 {[%emt 0:00:56]} h2 {[%emt 0:00:06]} 51. Qh8+ {[%emt 0:00:33]} Kf5 {[%emt 0:00:11]} 52. a7 {[%emt 0:00:24]} Bf3 {[%emt 0:02:05]} 53. a8=Q {[%emt 0:01:05]} Bxa8 {[%emt 0:00:16]} 54. Qxa8 {[%emt 0:00:09]} e4 {[%emt 0:00:13]} 55. Qd5+ {[%emt 0:00:46]} Kg4 {[%emt 0:00:37]} 56. Qxe4+ {[%emt 0:00:10] Kg5} 1-0

[Event "Silver Lake Open-A 2018"]
[Site "Veliko Gradiste"]
[Date "2018.06.22"]
[Round "7"]
[White "Tosic, Miroslav"]
[Black "Kosanovic, Goran A"]
[Result "1-0"]
[ECO "D04"]
[WhiteElo "2384"]
[BlackElo "2345"]
[Annotator "NA"]
[PlyCount "55"]
[EventDate "2018.06.21"]
[EventType "swiss"]
[EventCountry "SRB"]
[SourceTitle "playchess.com"]
[Source "ChessBase"]
[SourceQuality "1"]
[TimeControl "40/5400+30:900+30"]

1. d4 {[%emt 0:00:00]} d5 {[%emt 0:00:22]} 2. Nf3 {[%emt 0:00:00]} Nf6 {[%emt 0:00:25]} 3. e3 {[%emt 0:00:00]} c5 {[%emt 0:01:11]} 4. dxc5 {[%emt 0:00:46]} Qa5+ {[%emt 0:01:13]} 5. Nbd2 {[%emt 0:00:06]} Qxc5 {[%emt 0:00:08]} 6. a3 {[%emt 0:00:04]} g6 {[%emt 0:06:50]} 7. b4 {[%emt 0:00:06]} Qc7 {[%emt 0:00:13]} 8. Bb2 {[%emt 0:00:06]} Bg7 {[%emt 0:00:06]} 9. c4 {[%emt 0:00:27]} dxc4 {[%emt 0:02:05]} 10. Bxc4 {[%emt 0:00:32]} O-O {[%emt 0:01:13]} 11. Rc1 {[%emt 0:01:18]} Qd8 {[%emt 0:01:03]} 12. Qb3 {[%emt 0:04:52]} Bd7 {[%emt 0:03:53]} 13. b5 {[%emt 0:01:14]} Be8 {[%emt 0:01:52]} 14. O-O {[%emt 0:00:14]} Nbd7 {[%emt 0:00:03]} 15. Rfd1 {[%emt 0:00:14]} Rc8 {[%emt 0:16:21]} 16. a4 {[%emt 0:12:01]} Nc5 {[%emt 0:04:32]} 17. Qa3 {[%emt 0:00:12]} Nfd7 {[%emt 0:03:05]} 18. Bd4 {[%emt 0:10:07]} b6 {[%emt 0:06:12]} 19. Bd5 {[%emt 0:02:29]} e5 {[%emt 0:10:14]} 20. Bb2 {[%emt 0:04:46]} Qe7 {[%emt 0:03:08]} 21. Ne4 {[%emt 0:03:21]} Kh8 {[%emt 0:04:01]} 22. Bc6 {[%emt 0:00:29]} Rc7 {[%emt 0:09:18]} 23. Rd5 {[%emt 0:04:10]} f5 {[%emt 0:05:05]} 24. Nxc5 {[%emt 0:00:20]} Nxc5 {[%emt 0:00:18]} 25. Rxe5 {[%emt 0:00:14]} Bxe5 {[%emt 0:04:29]} 26. Nxe5 {[%emt 0:06:33]} Kg8 {[%emt 0:00:20]} 27. Bd5+ {[%emt 0:00:29]} Rf7 {[%emt 0:01:00]} 28. Nxg6 {[%emt 0:04:22]} 1-0

[Event "Silver Lake Open-A 2018"]
[Site "Veliko Gradiste"]
[Date "2018.06.22"]
[Round "7"]
[White "Konaplev, Anton"]
[Black "Marcetic, Nikola"]
[Result "0-1"]
[ECO "E59"]
[WhiteElo "2353"]
[BlackElo "2342"]
[Annotator "NA"]
[PlyCount "82"]
[EventDate "2018.06.21"]
[EventType "swiss"]
[EventCountry "SRB"]
[SourceTitle "playchess.com"]
[Source "ChessBase"]
[SourceQuality "1"]
[TimeControl "40/5400+30:900+30"]

1. d4 {[%emt 0:00:00]} Nf6 {[%emt 0:00:17]} 2. c4 {[%emt 0:00:00]} e6 {[%emt 0:00:09]} 3. Nc3 {[%emt 0:00:32]} Bb4 {[%emt 0:00:28]} 4. e3 {[%emt 0:00:20]} O-O {[%emt 0:00:14]} 5. Bd3 {[%emt 0:00:56]} d5 {[%emt 0:01:54]} 6. Nf3 {[%emt 0:00:50]} c5 {[%emt 0:06:13]} 7. O-O {[%emt 0:00:26]} dxc4 {[%emt 0:06:44]} 8. Bxc4 {[%emt 0:02:53]} Nc6 9. a3 {[%emt 0:00:01]} Bxc3 {[%emt 0:02:44]} 10. bxc3 {[%emt 0:06:36]} b6 {[%emt 0:13:51]} 11. Ba2 {[%emt 0:02:38]} Bb7 12. Qe2 Ne4 {[%emt 0:11:03]} 13. Bb2 {[%emt 0:01:24]} Rc8 {[%emt 0:05:39]} 14. Rfd1 {[%emt 0:02:51]} cxd4 {[%emt 0:04:34]} 15. exd4 {[%emt 0:05:25]} Na5 {[%emt 0:04:05]} 16. Rac1 {[%emt 0:22:42]} Nd6 {[%emt 0:01:38]} 17. Ne5 {[%emt 0:03:38]} b5 {[%emt 0:02:36]} 18. a4 {[%emt 0:03:56]} Ndc4 {[%emt 0:11:07]} 19. axb5 {[%emt 0:11:21]} Qd5 {[%emt 0:02:30]} 20. f3 {[%emt 0:01:17]} Qxb5 {[%emt 0:04:37]} 21. Rb1 {[%emt 0:04:14]} Qa4 {[%emt 0:02:58]} 22. Bxc4 {[%emt 0:04:12]} Nxc4 {[%emt 0:00:07]} 23. Ra1 {[%emt 0:07:12]} Qb3 {[%emt 0:04:27]} 24. Nxc4 {[%emt 0:07:55]} Rxc4 {[%emt 0:03:25]} 25. Rxa7 {[%emt 0:01:59]} Rfc8 {[%emt 0:01:46]} 26. Ra3 {[%emt 0:01:29]} Qb6 {[%emt 0:00:33]} 27. Qf2 {[%emt 0:01:27]} Bd5 {[%emt 0:00:24]} 28. Rda1 {[%emt 0:00:29]} h6 {[%emt 0:01:19]} 29. h3 {[%emt 0:01:02]} Qb8 {[%emt 0:01:44]} 30. Re1 {[%emt 0:01:57]} R4c6 {[%emt 0:01:55]} 31. Raa1 {[%emt 0:01:57]} Rb6 {[%emt 0:00:39]} 32. Re2 {[%emt 0:00:12]} Rb3 {[%emt 0:02:37]} 33. Rc1 {[%emt 0:00:55]} Qf4 {[%emt 0:00:21]} 34. Rcc2 {[%emt 0:00:24]} Bc4 {[%emt 0:00:56]} 35. Qe3 {[%emt 0:02:45]} Qb8 {[%emt 0:02:20]} 36. Rf2 {[%emt 0:00:45]} Qa7 {[%emt 0:00:40]} 37. Kh2 {[%emt 0:00:20]} Rcb8 {[%emt 0:00:52]} 38. Bc1 {[%emt 0:00:07]} Rb1 {[%emt 0:00:43]} 39. Rb2 {[%emt 0:01:21]} R8xb2 {[%emt 0:00:16]} 40. Rxb2 {[%emt 0:00:00]} Rxb2 {[%emt 0:00:06]} 41. Bxb2 {[%emt 0:01:24]} Qb8+ {[%emt 0:00:04]} 0-1

[Event "Silver Lake Open-A 2018"]
[Site "Veliko Gradiste"]
[Date "2018.06.22"]
[Round "7"]
[White "Rajkovic, Dusan"]
[Black "Kantorik, Marian"]
[Result "1/2-1/2"]
[ECO "D30"]
[WhiteElo "2351"]
[BlackElo "2260"]
[Annotator "NA"]
[PlyCount "66"]
[EventDate "2018.06.21"]
[EventType "swiss"]
[EventCountry "SRB"]
[SourceTitle "playchess.com"]
[Source "ChessBase"]
[SourceQuality "1"]
[TimeControl "40/5400+30:900+30"]

1. d4 {[%emt 0:01:57]} d5 {[%emt 0:00:19]} 2. c4 {[%emt 0:00:09]} e6 {[%emt 0:00:40]} 3. Nf3 {[%emt 0:01:25]} c5 {[%emt 0:00:17]} 4. cxd5 {[%emt 0:03:38]} exd5 {[%emt 0:00:14]} 5. g3 {[%emt 0:00:40]} Nc6 {[%emt 0:00:15]} 6. Bg2 {[%emt 0:00:42]} Nf6 {[%emt 0:00:16]} 7. O-O {[%emt 0:00:10]} Be7 {[%emt 0:00:10]} 8. dxc5 {[%emt 0:03:11]} Bxc5 {[%emt 0:01:55]} 9. Bg5 {[%emt 0:07:16]} Be6 {[%emt 0:01:30]} 10. Nbd2 {[%emt 0:01:15]} O-O {[%emt 0:00:56]} 11. Nb3 {[%emt 0:00:57]} Be7 {[%emt 0:06:19]} 12. Rc1 {[%emt 0:02:08]} Ne4 {[%emt 0:03:46]} 13. Bxe7 {[%emt 0:08:26]} Qxe7 {[%emt 0:00:12]} 14. Nbd4 {[%emt 0:01:22]} Rac8 {[%emt 0:04:15]} 15. Qd3 {[%emt 0:03:48]} Nxd4 {[%emt 0:08:10]} 16. Qxd4 {[%emt 0:02:15]} a6 {[%emt 0:02:07]} 17. a3 {[%emt 0:12:20]} Rfd8 {[%emt 0:05:38]} 18. Ne5 {[%emt 0:05:28]} Nf6 {[%emt 0:02:56]} 19. Rfd1 {[%emt 0:01:59]} h6 {[%emt 0:05:22]} 20. Bf3 {[%emt 0:01:29]} Re8 {[%emt 0:04:37]} 21. Nd3 {[%emt 0:04:25]} Bf5 {[%emt 0:07:23]} 22. Qb4 {[%emt 0:00:34]} Qxb4 {[%emt 0:03:33]} 23. Nxb4 {[%emt 0:00:07]} Be4 {[%emt 0:03:17]} 24. Rxc8 {[%emt 0:06:33]} Rxc8 {[%emt 0:00:07]} 25. Nxd5 {[%emt 0:00:09]} Bxd5 {[%emt 0:03:10]} 26. Bxd5 {[%emt 0:00:07]} Nxd5 {[%emt 0:00:10]} 27. Rxd5 {[%emt 0:00:15]} Rc2 {[%emt 0:00:02]} 28. Rd8+ {[%emt 0:00:14]} Kh7 {[%emt 0:00:05]} 29. Rd7 {[%emt 0:00:17]} Rxb2 {[%emt 0:00:22]} 30. Rxf7 {[%emt 0:00:28]} b5 {[%emt 0:04:45]} 31. Ra7 {[%emt 0:07:29]} Rxe2 {[%emt 0:00:22]} 32. Rxa6 {[%emt 0:00:07]} Rb2 {[%emt 0:00:16]} 33. Kg2 {[%emt 0:01:56]} b4 {[%emt 0:00:17]} 1/2-1/2

[Event "Silver Lake Open-A 2018"]
[Site "Veliko Gradiste"]
[Date "2018.06.22"]
[Round "7"]
[White "Injac, Teodora"]
[Black "Low, Zhen Yu Cyrus"]
[Result "1/2-1/2"]
[ECO "A48"]
[WhiteElo "2282"]
[BlackElo "2387"]
[Annotator "NA"]
[PlyCount "72"]
[EventDate "2018.06.21"]
[EventType "swiss"]
[EventCountry "SRB"]
[SourceTitle "playchess.com"]
[Source "ChessBase"]
[SourceQuality "1"]
[TimeControl "40/5400+30:900+30"]

1. d4 {[%emt 0:02:47]} Nf6 {[%emt 0:00:09]} 2. Nf3 {[%emt 0:00:06]} g6 {[%emt 0:00:17]} 3. Nbd2 {[%emt 0:00:21]} d5 {[%emt 0:02:10]} 4. e3 {[%emt 0:00:11]} Bg7 {[%emt 0:00:23]} 5. b4 {[%emt 0:00:11]} a5 {[%emt 0:05:29]} 6. b5 {[%emt 0:00:31]} c5 {[%emt 0:01:04]} 7. bxc6 {[%emt 0:00:40]} Nxc6 {[%emt 0:00:06]} 8. Be2 {[%emt 0:02:08]} O-O {[%emt 0:07:57]} 9. O-O {[%emt 0:00:28]} Bf5 {[%emt 0:00:08]} 10. Bb2 {[%emt 0:00:42]} Qb6 {[%emt 0:06:06]} 11. Ba3 {[%emt 0:13:57]} Rac8 {[%emt 0:11:27]} 12. c4 {[%emt 0:08:54]} Rfe8 {[%emt 0:06:59]} 13. Rc1 {[%emt 0:09:27]} Nb4 {[%emt 0:08:55]} 14. Qb3 {[%emt 0:02:59]} dxc4 {[%emt 0:14:47]} 15. Nxc4 {[%emt 0:01:50]} Qa6 {[%emt 0:02:30]} 16. Rfe1 {[%emt 0:25:59]} b5 {[%emt 0:08:03]} 17. Nce5 {[%emt 0:06:32]} Be6 {[%emt 0:00:22]} 18. Qb2 {[%emt 0:00:06]} Nfd5 {[%emt 0:14:01]} 19. Nd3 {[%emt 0:02:50]} Nxd3 {[%emt 0:03:10]} 20. Bxd3 {[%emt 0:00:03]} Bd7 {[%emt 0:00:29]} 21. Qd2 {[%emt 0:07:20]} Nb6 {[%emt 0:04:08]} 22. Rxc8 {[%emt 0:02:21]} Bxc8 {[%emt 0:00:01]} 23. Qe2 {[%emt 0:01:53]} Nc4 {[%emt 0:01:08]} 24. Bc5 {[%emt 0:03:31]} Bd7 {[%emt 0:01:06]} 25. a4 {[%emt 0:00:38]} e5 {[%emt 0:00:59]} 26. axb5 {[%emt 0:04:34]} Bxb5 27. dxe5 {[%emt 0:01:09]} Rb8 {[%emt 0:01:21]} 28. Rb1 {[%emt 0:00:31]} Rc8 {[%emt 0:00:24]} 29. Bd4 {[%emt 0:01:10]} a4 {[%emt 0:00:37]} 30. Nd2 {[%emt 0:00:34]} Nxd2 {[%emt 0:00:32]} 31. Bxb5 {[%emt 0:00:05]} Qa5 {[%emt 0:00:40]} 32. Rd1 {[%emt 0:00:44]} Nb3 {[%emt 0:00:00]} 33. Bc4 {[%emt 0:00:39]} Bxe5 {[%emt 0:00:41]} 34. Bxe5 {[%emt 0:00:25]} Qxe5 {[%emt 0:00:02]} 35. Qd3 {[%emt 0:00:39]} Nc5 {[%emt 0:00:59]} 36. Qc2 {[%emt 0:00:28]} Kg7 {[%emt 0:00:49]} 1/2-1/2

[Event "Silver Lake Open-A 2018"]
[Site "Veliko Gradiste"]
[Date "2018.06.22"]
[Round "7"]
[White "Mastrapovic, Vladimir"]
[Black "Markovic, Zoran S"]
[Result "1/2-1/2"]
[ECO "B33"]
[WhiteElo "2237"]
[BlackElo "2350"]
[Annotator "NA"]
[PlyCount "76"]
[EventDate "2018.06.21"]
[EventType "swiss"]
[EventCountry "SRB"]
[SourceTitle "playchess.com"]
[Source "ChessBase"]
[SourceQuality "1"]
[TimeControl "40/5400+30:900+30"]

1. e4 {[%emt 0:00:00]} c5 {[%emt 0:00:11]} 2. Nf3 {[%emt 0:00:00]} Nc6 {[%emt 0:00:06]} 3. d4 {[%emt 0:00:06]} cxd4 {[%emt 0:00:07]} 4. Nxd4 {[%emt 0:00:11]} Nf6 {[%emt 0:00:11]} 5. Nc3 {[%emt 0:00:08]} e5 {[%emt 0:00:08]} 6. Ndb5 {[%emt 0:00:19]} d6 {[%emt 0:00:25]} 7. Bg5 {[%emt 0:01:14]} a6 {[%emt 0:00:19]} 8. Na3 {[%emt 0:00:09]} b5 {[%emt 0:00:20]} 9. Nd5 {[%emt 0:00:08]} Be7 {[%emt 0:00:33]} 10. Bxf6 {[%emt 0:00:09]} Bxf6 {[%emt 0:00:08]} 11. c4 {[%emt 0:00:08]} b4 {[%emt 0:00:56]} 12. Nc2 {[%emt 0:00:15]} a5 {[%emt 0:02:48]} 13. g3 {[%emt 0:00:28]} O-O {[%emt 0:00:58]} 14. Bg2 {[%emt 0:01:13]} Be6 {[%emt 0:02:23]} 15. O-O {[%emt 0:02:13]} Bxd5 {[%emt 0:06:36]} 16. Qxd5 {[%emt 0:00:39]} Qb6 {[%emt 0:02:07]} 17. Qd3 {[%emt 0:01:44]} Rfd8 {[%emt 0:06:04]} 18. h4 {[%emt 0:08:56]} Be7 {[%emt 0:12:05]} 19. Ne3 {[%emt 0:01:11]} Ra7 {[%emt 0:07:11]} 20. Rad1 {[%emt 0:05:09]} a4 {[%emt 0:04:08]} 21. Rc1 {[%emt 0:18:38]} Bf8 {[%emt 0:07:00]} 22. Rfd1 {[%emt 0:01:53]} g6 {[%emt 0:04:08]} 23. Nd5 {[%emt 0:01:45]} Qc5 {[%emt 0:02:00]} 24. g4 {[%emt 0:02:34]} Nd4 {[%emt 0:02:47]} 25. Qd2 {[%emt 0:07:11]} Rb8 {[%emt 0:03:47]} 26. g5 {[%emt 0:08:29]} Bg7 {[%emt 0:04:04]} 27. Qe3 {[%emt 0:02:36]} b3 {[%emt 0:05:04]} 28. a3 {[%emt 0:00:15]} Ne6 {[%emt 0:02:50]} 29. Qg3 {[%emt 0:07:05]} Nf4 {[%emt 0:01:35]} 30. Bf1 {[%emt 0:00:26]} h5 {[%emt 0:03:26]} 31. Rd2 {[%emt 0:00:45]} Qc8 {[%emt 0:05:07]} 32. Nc3 {[%emt 0:06:35]} Bf8 {[%emt 0:01:40]} 33. Rcd1 {[%emt 0:05:16]} Qc6 {[%emt 0:04:34]} 34. Nd5 {[%emt 0:01:00]} Nxd5 {[%emt 0:03:15]} 35. Rxd5 {[%emt 0:00:18]} Qc8 {[%emt 0:00:18]} 36. R1d2 {[%emt 0:04:54]} Rba8 {[%emt 0:01:52]} 37. Be2 {[%emt 0:05:00]} Rc7 {[%emt 0:00:51]} 38. Qf3 {[%emt 0:02:01]} Qd8 {[%emt 0:01:08]} 1/2-1/2

[Event "Silver Lake Open-A 2018"]
[Site "Veliko Gradiste"]
[Date "2018.06.23"]
[Round "8"]
[White "Karavade, Eesha"]
[Black "Ioannidis, Evgenios"]
[Result "1/2-1/2"]
[ECO "B51"]
[WhiteElo "2399"]
[BlackElo "2339"]
[Annotator "NA"]
[PlyCount "35"]
[EventDate "2018.06.21"]
[EventType "swiss"]
[EventCountry "SRB"]
[SourceTitle "playchess.com"]
[Source "ChessBase"]
[SourceQuality "1"]
[TimeControl "40/5400+30:900+30"]

1. Nf3 c5 2. e4 d6 3. Bb5+ Nd7 4. d4 cxd4 5. Qxd4 a6 6. Bxd7+ Bxd7 7. c4 Rc8 8. Nc3 e5 9. Qd3 Qc7 10. b3 b5 11. Nd5 Qc6 12. Nd2 Nf6 13. Ne3 bxc4 14. bxc4 Be7 15. O-O O-O 16. Ba3 Rfd8 17. Rfc1 Qa4 18. Qb3 1/2-1/2